fUST/lending_fUST_20250828
["ID","MTS","AMOUNT","RATE_DAILY","PERIOD"]
[381807465,1756356663749,-480.0,0.00020464,2]
[381807466,1756356663758,-242.4410132,0.00020469,2]
[381807467,1756356663768,-8091.62,0.00020471,2]
[381807468,1756356663777,-1746.61,0.00020471,2]
[381807469,1756356663787,-6670.63,0.00020471,2]
[381807470,1756356663797,-502.78309826,0.00020473,2]
[381807471,1756356663806,-500.0,0.00020473,2]
[381807472,1756356663816,-500.0,0.00020473,2]
[381807473,1756356663825,-500.0,0.00020473,2]
[381807474,1756356663835,-500.0,0.00020473,2]
[381807475,1756356663844,-500.0,0.00020473,2]
[381807476,1756356663854,-500.0,0.00020473,2]
[381807477,1756356663863,-500.0,0.00020473,2]
[381807478,1756356663873,-500.0,0.00020473,2]
[381807479,1756356663882,-500.0,0.00020473,2]
[381807480,1756356663892,-500.0,0.00020473,2]
[381807481,1756356663902,-500.0,0.00020473,2]
[381807482,1756356663911,-560.88111768,0.00020473,2]
[381807483,1756356663920,-162.20470365,0.00020473,2]
[381807484,1756356663930,-500.0,0.00020473,2]
[381807485,1756356663939,-500.0,0.00020473,2]
[381807486,1756356663948,-500.0,0.00020473,2]
[381807487,1756356663958,-500.0,0.00020473,2]
[381807488,1756356663967,-500.0,0.00020473,2]
[381807489,1756356663976,-608.23649162,0.00020473,2]
[381807490,1756356663986,-427.21707528,0.00020473,2]
[381807491,1756356663995,-500.0,0.00020473,2]
[381807492,1756356664004,-400.57091245,0.00020473,2]
[381807493,1756356664013,-500.0,0.00020473,2]
[381807494,1756356664023,-500.0,0.00020473,2]
[381807495,1756356664032,-500.0,0.00020473,2]
[381807496,1756356664042,-500.0,0.00020473,2]
[381807497,1756356664052,-500.0,0.00020473,2]
[381807498,1756356664062,-600.04349437,0.00020473,2]
[381807499,1756356664071,-500.0,0.00020473,2]
[381807500,1756356664080,-500.0,0.00020473,2]
[381807501,1756356664090,-500.0,0.00020473,2]
[381807502,1756356664099,-500.0,0.00020473,2]
[381807503,1756356664109,-500.72602518,0.00020473,2]
[381807504,1756356664118,-500.0,0.00020473,2]
[381807505,1756356664128,-500.0,0.00020473,2]
[381807506,1756356664138,-500.0,0.00020473,2]
[381807507,1756356664148,-500.0,0.00020473,2]
[381807508,1756356664159,-160.43103054,0.00020473,2]
[381807509,1756356664168,-151.0,0.00020473,2]
[381807510,1756356664178,-151.0,0.00020473,2]
[381807511,1756356664187,-246.04,0.00020473,2]
[381807512,1756356664197,-246.04,0.00020473,2]
[381807513,1756356664206,-246.04,0.00020473,2]
[381807514,1756356664215,-246.04,0.00020473,2]
[381807515,1756356664226,-151.0,0.00020474,2]
[381807516,1756356664236,-151.0,0.00020474,2]
[381807517,1756356664246,-151.0,0.00020474,2]
[381807518,1756356664256,-247.331902,0.00020474,2]
[381807519,1756356664265,-151.0,0.00020474,2]
[381807520,1756356664275,-151.0,0.00020474,2]
[381807521,1756356664285,-151.0,0.00020474,2]
[381807522,1756356664295,-151.0,0.00020474,2]
[381807523,1756356664305,-151.0,0.00020474,2]
[381807524,1756356664315,-151.0,0.00020474,2]
[381807525,1756356664324,-151.0,0.00020474,2]
[381807526,1756356664333,-151.0,0.00020474,2]
[381807527,1756356664343,-151.0,0.00020474,2]
[381807528,1756356664354,-151.0,0.00020474,2]
[381807529,1756356664363,-151.0,0.00020474,2]
[381807530,1756356664373,-151.0,0.00020474,2]
[381807531,1756356664382,-151.0,0.00020474,2]
[381807532,1756356664392,-151.0,0.00020474,2]
[381807533,1756356664401,-233.463302,0.00020474,2]
[381807534,1756356664411,-233.463302,0.00020474,2]
[381807535,1756356664420,-233.463302,0.00020474,2]
[381807536,1756356664430,-233.463298,0.00020474,2]
[381807537,1756356664439,-859.24,0.00020474,2]
[381807538,1756356664449,-1705.38,0.00020474,2]
[381807539,1756356664459,-1694.54,0.00020474,2]
[381807540,1756356664469,-480.0,0.00020474,2]
[381807541,1756356664479,-762.91,0.00020474,2]
[381807542,1756356664489,-151.0,0.00020475,2]
[381807543,1756356664499,-151.0,0.00020475,2]
[381807544,1756356664508,-151.0,0.00020475,2]
[381807545,1756356664522,-210.381789,0.00020475,2]
[381807546,1756356664532,-210.381789,0.00020475,2]
[381807547,1756356664541,-151.0,0.00020475,2]
[381807548,1756356664553,-210.381789,0.00020475,2]
[381807549,1756356664563,-151.0,0.00020475,2]
[381807550,1756356664573,-210.381789,0.00020475,2]
[381807551,1756356664582,-782.46478,0.00020475,2]
[381807552,1756356664595,-151.0,0.00020475,7]
[381807553,1756356664608,-151.0,0.00020475,7]
[381807554,1756356664617,-151.0,0.00020475,7]
[381807555,1756356664627,-161.292614,0.00020475,7]
[381807556,1756356664635,-782.46478,0.00020475,2]
[381807557,1756356664645,-782.46478,0.00020475,2]
[381807558,1756356664654,-782.46478,0.00020475,2]
[381807559,1756356664663,-151.0,0.00020475,2]
[381807560,1756356664672,-151.0,0.00020475,2]
[381807561,1756356664681,-151.0,0.00020475,2]
[381807562,1756356664690,-151.0,0.00020475,2]
[381807563,1756356664699,-151.0,0.00020475,2]
[381807564,1756356664708,-151.0,0.00020475,2]
[381807565,1756356664718,-151.0,0.00020475,2]
[381807566,1756356664727,-327.424466,0.00020475,2]
[381807567,1756356664736,-327.424466,0.00020475,2]
[381807568,1756356664746,-327.424466,0.00020475,2]
[381807569,1756356664756,-327.424466,0.00020475,2]
[381807570,1756356664765,-151.0,0.00020475,2]
[381807571,1756356664774,-151.0,0.00020475,2]
[381807572,1756356664783,-151.0,0.00020475,2]
[381807573,1756356664793,-480.0,0.00020476,2]
[381807574,1756356664802,-480.0,0.00020476,2]
[381807575,1756356664811,-480.0,0.00020476,2]
[381807576,1756356664820,-151.0,0.00020476,2]
[381807577,1756356664830,-151.0,0.00020476,2]
[381807578,1756356664839,-151.0,0.00020476,2]
[381807579,1756356664850,-151.0,0.00020476,2]
[381807580,1756356664861,-151.0,0.00020476,2]
[381807581,1756356664870,-151.0,0.00020476,2]
[381807582,1756356665018,-153.049077,0.00020476,2]
[381807583,1756356665028,-151.0,0.00020476,2]
[381807584,1756356665038,-151.0,0.00020476,2]
[381807585,1756356665048,-151.0,0.00020476,2]
[381807586,1756356665058,-151.0,0.00020476,2]
[381807587,1756356665068,-151.0,0.00020476,2]
[381807588,1756356665077,-162.291453,0.00020476,2]
[381807589,1756356665087,-151.0,0.00020476,2]
[381807590,1756356665096,-151.0,0.00020476,2]
[381807591,1756356665106,-151.0,0.00020476,2]
[381807592,1756356665116,-151.0,0.00020476,2]
[381807593,1756356665125,-151.0,0.00020476,2]
[381807594,1756356665134,-151.0,0.00020476,2]
[381807595,1756356665144,-151.0,0.00020476,2]
[381807596,1756356665154,-151.0,0.00020476,2]
[381807597,1756356665163,-218.186019,0.00020476,2]
[381807598,1756356665173,-151.0,0.00020476,2]
[381807599,1756356665182,-245.682429,0.00020476,2]
[381807600,1756356665191,-245.682429,0.00020476,2]
[381807601,1756356665203,-245.682429,0.00020476,2]
[381807602,1756356665213,-416.473097,0.00020476,2]
[381807603,1756356665222,-245.682437,0.00020476,2]
[381807604,1756356665232,-416.473097,0.00020476,2]
[381807605,1756356665241,-416.473097,0.00020476,2]
[381807606,1756356665250,-416.473093,0.00020476,2]
[381807607,1756356665260,-151.0,0.00020476,2]
[381807608,1756356665269,-151.0,0.00020476,2]
[381807609,1756356665279,-151.0,0.00020476,2]
[381807610,1756356665288,-151.0,0.00020479,2]
[381807611,1756356665298,-151.0,0.00020479,2]
[381807612,1756356665307,-246.04,0.00020479,2]
[381807613,1756356665317,-246.04,0.00020479,2]
[381807614,1756356665326,-246.04,0.00020479,2]
[381807615,1756356665336,-246.04,0.00020479,2]
[381807616,1756356665345,-3000.0,0.00020498,2]
[381807617,1756356665358,-151.0,0.000205,3]
[381807618,1756356665368,-151.0,0.000205,4]
[381807619,1756356665377,-3389.54824317,0.000205,2]
[381807620,1756356665387,-437.0,0.0002051,2]
[381807621,1756356665396,-151.0,0.00020512,2]
[381807622,1756356665405,-151.0,0.00020512,2]
[381807623,1756356665415,-151.0,0.00020512,2]
[381807624,1756356665424,-151.0,0.00020512,2]
[381807625,1756356665434,-800.0,0.00020513,2]
[381807626,1756356665443,-2815.58284374,0.00020517,2]
[381807627,1756356665453,-800.0,0.00020547,2]
[381807628,1756356665463,-500.0,0.00020564,2]
[381807629,1756356665473,-536.12,0.00020564,2]
[381807630,1756356665483,-602.26,0.00020564,2]
[381807631,1756356665493,-480.0,0.00020564,2]
[381807632,1756356665502,-480.0,0.00020564,2]
[381807633,1756356665513,-481.18851892,0.00020564,2]
[381807634,1756356665526,-1007.62,0.00020564,2]
[381807635,1756356665540,-873.01,0.00020564,2]
[381807636,1756356665550,-337.0,0.00020568,2]
[381807637,1756356665560,-2919.75940895,0.00020572,2]
[381807638,1756356665569,-151.0,0.00020575,2]
[381807639,1756356665579,-151.0,0.00020575,2]
[381807640,1756356665588,-151.0,0.00020575,2]
[381807641,1756356665597,-151.0,0.00020575,2]
[381807642,1756356665607,-151.0,0.00020575,2]
[381807643,1756356665617,-151.0,0.00020575,2]
[381807644,1756356665626,-151.0,0.00020575,2]
[381807645,1756356665643,-151.0,0.00020575,2]
[381807646,1756356665654,-151.0,0.00020575,2]
[381807647,1756356665665,-4000.0,0.00020588,2]
[381807648,1756356665679,-2727.86,0.00020588,2]
[381807649,1756356665698,-764.1,0.00020588,2]
[381807650,1756356665708,-480.0,0.00020588,2]
[381807651,1756356665718,-1625.43,0.00020588,2]
[381807652,1756356665728,-560.22,0.00020588,2]
[381807653,1756356665738,-800.0,0.00020589,2]
[381807654,1756356665749,-151.0,0.000206,3]
[381807655,1756356665759,-3027.79050709,0.00020627,2]
[381807656,1756356665769,-669.482805,0.00020638,2]
[381807657,1756356665778,-669.482805,0.00020638,2]
[381807658,1756356665788,-151.0,0.00020638,2]
[381807659,1756356665797,-181.630564,0.00020638,2]
[381807660,1756356665807,-669.482805,0.00020638,2]
[381807661,1756356665816,-218.277584,0.00020638,2]
[381807662,1756356665825,-181.630564,0.00020638,2]
[381807663,1756356665835,-669.482796,0.00020638,2]
[381807664,1756356665844,-151.0,0.00020638,2]
[381807665,1756356665856,-181.630564,0.00020638,2]
[381807666,1756356665866,-151.0,0.00020638,2]
[381807667,1756356665876,-181.630555,0.00020638,2]
[381807668,1756356665885,-151.933521,0.00020638,2]
[381807669,1756356665894,-151.933521,0.00020638,2]
[381807670,1756356665904,-159.638801,0.00020638,2]
[381807671,1756356665913,-151.933521,0.00020638,2]
[381807672,1756356665922,-151.933525,0.00020638,2]
[381807673,1756356665932,-443.44757,0.00020638,2]
[381807674,1756356665942,-443.44757,0.00020638,2]
[381807675,1756356665951,-151.0,0.00020638,2]
[381807676,1756356665960,-443.44757,0.00020638,2]
[381807677,1756356665970,-151.0,0.00020638,2]
[381807678,1756356665979,-443.447562,0.00020638,2]
[381807679,1756356665989,-151.0,0.00020638,2]
[381807680,1756356665999,-244.618368,0.00020638,2]
[381807681,1756356666008,-244.618368,0.00020638,2]
[381807682,1756356666018,-244.618368,0.00020638,2]
[381807683,1756356666027,-244.618375,0.00020638,2]
[381807684,1756356666037,-480.0,0.00020662,2]
[381807685,1756356666046,-480.0,0.00020662,2]
[381807686,1756356666055,-518.90350799,0.00020662,2]
[381807687,1756356666064,-939.37,0.00020662,2]
[381807688,1756356666074,-592.22250925,0.00020662,2]
[381807689,1756356666083,-500.63,0.00020662,2]
[381807690,1756356666093,-482.66415075,0.00020662,2]
[381807691,1756356666104,-480.0,0.00020662,2]
[381807692,1756356666113,-480.0,0.00020662,2]
[381807693,1756356666123,-480.0,0.00020662,2]
[381807694,1756356666132,-480.0,0.00020662,2]
[381807695,1756356666141,-480.0,0.00020662,2]
[381807696,1756356666152,-480.0,0.00020662,2]
[381807697,1756356666162,-480.0,0.00020662,2]
[381807698,1756356666172,-480.0,0.00020662,2]
[381807699,1756356666182,-480.0,0.00020662,2]
[381807700,1756356666191,-480.0,0.00020662,2]
[381807701,1756356666201,-644.18,0.00020662,2]
[381807702,1756356666210,-480.0,0.00020662,2]
[381807703,1756356666219,-481.26800309,0.00020662,2]
[381807704,1756356666229,-480.0,0.00020662,2]
[381807705,1756356666239,-480.0,0.00020662,2]
[381807706,1756356666248,-481.12422494,0.00020662,2]
[381807707,1756356666257,-480.0,0.00020662,2]
[381807708,1756356666267,-480.0,0.00020662,2]
[381807709,1756356666276,-199.64287859,0.00020662,2]
[381807710,1756356666286,-480.0,0.00020662,2]
[381807711,1756356666295,-482.15838369,0.00020662,2]
[381807712,1756356666304,-480.0,0.00020662,2]
[381807713,1756356666314,-480.0,0.00020662,2]
[381807714,1756356666324,-480.0,0.00020662,2]
[381807715,1756356666333,-480.0,0.00020662,2]
[381807716,1756356666343,-480.0,0.00020662,2]
[381807717,1756356666354,-480.0,0.00020662,2]
[381807718,1756356666363,-480.0,0.00020662,2]
[381807719,1756356666373,-480.0,0.00020662,2]
[381807720,1756356666383,-480.91481663,0.00020662,2]
[381807721,1756356666393,-617.45,0.00020662,2]
[381807722,1756356666402,-570.55,0.00020662,2]
[381807723,1756356666412,-480.0,0.00020662,2]
[381807724,1756356666421,-480.0,0.00020662,2]
[381807725,1756356666431,-616.29,0.00020662,2]
[381807726,1756356666441,-1200.27,0.00020662,2]
[381807727,1756356666452,-480.0,0.00020662,2]
[381807728,1756356666462,-231.41900223,0.00020662,2]
[381807729,1756356666472,-480.0,0.00020662,2]
[381807730,1756356666481,-480.0,0.00020662,2]
[381807731,1756356666491,-601.73,0.00020662,2]
[381807732,1756356666500,-480.0,0.00020662,2]
[381807733,1756356666511,-480.0,0.00020662,2]
[381807734,1756356666524,-363.60861548,0.00020662,2]
[381807735,1756356666534,-466.28953477,0.00020662,2]
[381807736,1756356666544,-480.0,0.00020662,2]
[381807737,1756356666556,-480.0,0.00020662,2]
[381807738,1756356666565,-480.0,0.00020662,2]
[381807739,1756356666575,-480.0,0.00020662,2]
[381807740,1756356666585,-1428.02,0.00020662,2]
[381807741,1756356666596,-480.0,0.00020662,2]
[381807742,1756356666607,-480.0,0.00020662,2]
[381807743,1756356666616,-480.0,0.00020662,2]
[381807744,1756356666626,-480.0,0.00020662,2]
[381807745,1756356666635,-2722.72,0.00020662,2]
[381807746,1756356666646,-480.0,0.00020662,2]
[381807747,1756356666656,-480.0,0.00020662,2]
[381807748,1756356666666,-480.0,0.00020662,2]
[381807749,1756356666675,-480.0,0.00020662,2]
[381807750,1756356666685,-480.0,0.00020662,2]
[381807751,1756356666694,-480.0,0.00020662,2]
[381807752,1756356666703,-480.0,0.00020662,2]
[381807753,1756356666716,-480.0,0.00020662,2]
[381807754,1756356666726,-480.0,0.00020662,2]
[381807755,1756356666735,-4245.17,0.00020662,2]
[381807756,1756356666744,-480.0,0.00020662,2]
[381807757,1756356666754,-480.0,0.00020662,2]
[381807758,1756356666763,-480.0,0.00020662,2]
[381807759,1756356666772,-480.0,0.00020662,2]
[381807760,1756356666782,-480.0,0.00020662,2]
[381807761,1756356666791,-480.0,0.00020662,2]
[381807762,1756356666807,-480.0,0.00020662,2]
[381807763,1756356666816,-480.0,0.00020662,2]
[381807764,1756356666826,-480.0,0.00020662,2]
[381807765,1756356666835,-480.0,0.00020662,2]
[381807766,1756356666844,-541.84,0.00020662,2]
[381807767,1756356666854,-480.0,0.00020662,2]
[381807768,1756356666864,-480.0,0.00020662,2]
[381807769,1756356666873,-480.0,0.00020662,2]
[381807770,1756356666882,-480.0,0.00020662,2]
[381807771,1756356666892,-480.0,0.00020662,2]
[381807772,1756356666901,-431.50523187,0.00020662,2]
[381807773,1756356666911,-480.0,0.00020662,2]
[381807774,1756356666920,-568.72,0.00020662,2]
[381807775,1756356666930,-480.0,0.00020662,2]
[381807776,1756356666939,-1881.85,0.00020662,2]
[381807777,1756356666949,-480.0,0.00020662,2]
[381807778,1756356666958,-480.0,0.00020662,2]
[381807779,1756356666968,-480.0,0.00020662,2]
[381807780,1756356666978,-662.5,0.00020662,2]
[381807781,1756356666987,-554.0,0.00020662,2]
[381807782,1756356666997,-480.0,0.00020662,2]
[381807783,1756356667008,-480.0,0.00020662,2]
[381807784,1756356667017,-480.0,0.00020662,2]
[381807785,1756356667026,-480.0,0.00020664,2]
[381807786,1756356667036,-2673.38,0.00020664,2]
[381807787,1756356667045,-3486.98,0.00020664,2]
[381807788,1756356667055,-1278.52,0.00020664,2]
[381807789,1756356667064,-562.42,0.00020664,2]
[381807790,1756356667074,-480.0,0.00020664,2]
[381807791,1756356667083,-1660.3,0.00020664,2]
[381807792,1756356667092,-481.11707133,0.00020664,2]
[381807793,1756356667102,-941.02,0.00020664,2]
[381807794,1756356667112,-811.95,0.00020664,2]
[381807795,1756356667121,-1515.77,0.00020664,2]
[381807796,1756356667130,-592.54,0.00020664,2]
[381807797,1756356667140,-760.29,0.00020664,2]
[381807798,1756356667150,-1016.7,0.00020664,2]
[381807799,1756356667160,-480.0,0.00020664,2]
[381807800,1756356667170,-480.0,0.00020664,2]
[381807801,1756356667180,-530.32,0.00020664,2]
[381807802,1756356667189,-1850.6,0.00020664,2]
[381807803,1756356667198,-1997.18,0.00020664,2]
[381807804,1756356667208,-1812.86,0.00020664,2]
[381807805,1756356667217,-542.84,0.00020664,2]
[381807806,1756356667226,-299.0,0.00020675,2]
[381807807,1756356667235,-157.099635,0.0002068,2]
[381807808,1756356667244,-151.0,0.0002068,2]
[381807809,1756356667254,-152.873393,0.0002068,2]
[381807810,1756356667263,-151.0,0.0002068,2]
[381807811,1756356667272,-151.0,0.0002068,2]
[381807812,1756356667281,-151.0,0.0002068,2]
[381807813,1756356667291,-151.0,0.0002068,2]
[381807814,1756356667300,-151.0,0.0002068,2]
[381807815,1756356667310,-151.0,0.0002068,2]
[381807816,1756356667319,-151.0,0.0002068,2]
[381807817,1756356667329,-151.0,0.0002068,2]
[381807818,1756356667338,-151.0,0.0002068,2]
[381807819,1756356667347,-151.0,0.0002068,2]
[381807820,1756356667358,-151.0,0.0002068,2]
[381807821,1756356667368,-151.0,0.0002068,2]
[381807822,1756356667377,-151.0,0.0002068,2]
[381807823,1756356667386,-151.0,0.0002068,2]
[381807824,1756356667396,-210.381789,0.0002068,2]
[381807825,1756356667405,-210.381789,0.0002068,2]
[381807826,1756356667414,-151.0,0.0002068,2]
[381807827,1756356667423,-210.381789,0.0002068,2]
[381807828,1756356667432,-155.143224,0.0002068,2]
[381807829,1756356667442,-210.381789,0.0002068,2]
[381807830,1756356667451,-782.46478,0.0002068,2]
[381807831,1756356667460,-782.46478,0.0002068,2]
[381807832,1756356667469,-782.46478,0.0002068,2]
[381807833,1756356667478,-782.46478,0.0002068,2]
[381807834,1756356667487,-151.0,0.0002068,2]
[381807835,1756356667634,-151.0,0.0002068,2]
[381807836,1756356667643,-151.0,0.0002068,2]
[381807837,1756356667653,-151.0,0.0002068,2]
[381807838,1756356667663,-151.0,0.0002068,2]
[381807839,1756356667671,-151.0,0.0002068,2]
[381807840,1756356667681,-151.0,0.0002068,2]
[381807841,1756356667690,-327.424466,0.0002068,2]
[381807842,1756356667699,-327.424466,0.0002068,2]
[381807843,1756356667708,-327.424466,0.0002068,2]
[381807844,1756356667717,-327.424466,0.0002068,2]
[381807845,1756356667727,-151.0,0.0002068,2]
[381807846,1756356667737,-151.0,0.0002068,2]
[381807847,1756356667746,-3139.81875585,0.00020682,2]
[381807848,1756356667755,-337.0,0.00020686,2]
[381807849,1756356667765,-5000.0,0.00020696,2]
[381807850,1756356667774,-151.0,0.00020696,2]
[381807851,1756356667784,-151.0,0.000207,4]
[381807852,1756356667793,-151.0,0.000207,3]
[381807853,1756356667802,-519.84673943,0.00020721,2]
[381807854,1756356667811,-1026.40357111,0.00020721,2]
[381807855,1756356667820,-500.0,0.00020721,2]
[381807856,1756356667829,-500.0,0.00020721,2]
[381807857,1756356667838,-1000.0,0.00020721,2]
[381807858,1756356667848,-501.18037801,0.00020721,2]
[381807859,1756356667858,-1000.0,0.00020721,2]
[381807860,1756356667867,-1000.0,0.00020721,2]
[381807861,1756356667876,-1000.0,0.00020721,2]
[381807862,1756356667886,-355.80338343,0.00020721,2]
[381807863,1756356667895,-1000.0,0.00020721,2]
[381807864,1756356667905,-216.56405269,0.00020721,2]
[381807865,1756356667914,-1000.0,0.00020721,2]
[381807866,1756356667924,-1051.77534748,0.00020721,2]
[381807867,1756356667933,-160.40224948,0.00020721,2]
[381807868,1756356667943,-1000.0,0.00020721,2]
[381807869,1756356667952,-1000.0,0.00020721,2]
[381807870,1756356667962,-1000.0,0.00020721,2]
[381807871,1756356667972,-480.0,0.00020732,2]
[381807872,1756356667981,-480.0,0.00020732,2]
[381807873,1756356667990,-480.0,0.00020732,2]
[381807874,1756356668000,-512.47,0.00020732,2]
[381807875,1756356668009,-480.0,0.00020732,2]
[381807876,1756356668019,-708.4,0.00020732,2]
[381807877,1756356668028,-1021.12,0.00020732,2]
[381807878,1756356668037,-1536.3,0.00020732,2]
[381807879,1756356668047,-219.46325371,0.00020732,2]
[381807880,1756356668056,-853.77,0.00020732,2]
[381807881,1756356668066,-584.77,0.00020732,2]
[381807882,1756356668076,-480.0,0.00020732,2]
[381807883,1756356668085,-480.0,0.00020732,2]
[381807884,1756356668094,-545.28,0.00020732,2]
[381807885,1756356668106,-686.06,0.00020732,2]
[381807886,1756356668115,-480.0,0.00020732,2]
[381807887,1756356668124,-694.72,0.00020732,2]
[381807888,1756356668133,-480.0,0.00020732,2]
[381807889,1756356668143,-480.0,0.00020732,2]
[381807890,1756356668153,-1147.93,0.00020732,2]
[381807891,1756356668163,-677.79,0.00020732,2]
[381807892,1756356668173,-1123.67,0.00020732,2]
[381807893,1756356668182,-544.12,0.00020732,2]
[381807894,1756356668191,-776.24,0.00020732,2]
[381807895,1756356668200,-480.0,0.00020732,2]
[381807896,1756356668210,-518.51,0.00020732,2]
[381807897,1756356668220,-498.32,0.00020732,2]
[381807898,1756356668229,-1614.03,0.00020732,2]
[381807899,1756356668238,-997.72,0.00020732,2]
[381807900,1756356668248,-586.07,0.00020732,2]
[381807901,1756356668258,-480.0,0.00020732,2]
[381807902,1756356668267,-487.54,0.00020732,2]
[381807903,1756356668277,-535.44,0.00020732,2]
[381807904,1756356668288,-687.49,0.00020732,2]
[381807905,1756356668297,-480.0,0.00020732,2]
[381807906,1756356668307,-783.92,0.00020732,2]
[381807907,1756356668316,-855.7,0.00020732,2]
[381807908,1756356668326,-480.0,0.00020732,2]
[381807909,1756356668336,-501.01,0.00020732,2]
[381807910,1756356668345,-543.48,0.00020732,2]
[381807911,1756356668357,-1003.05,0.00020732,2]
[381807912,1756356668367,-1200.0,0.00020732,2]
[381807913,1756356668376,-480.0,0.00020732,2]
[381807914,1756356668386,-1135.77,0.00020732,2]
[381807915,1756356668396,-921.25,0.00020732,2]
[381807916,1756356668406,-736.35,0.00020732,2]
[381807917,1756356668416,-480.0,0.00020732,2]
[381807918,1756356668427,-489.03,0.00020732,2]
[381807919,1756356668436,-480.0,0.00020732,2]
[381807920,1756356668446,-1501.6,0.00020732,2]
[381807921,1756356668456,-480.0,0.00020732,2]
[381807922,1756356668465,-480.0,0.00020732,2]
[381807923,1756356668475,-586.28,0.00020732,2]
[381807924,1756356668484,-480.0,0.00020732,2]
[381807925,1756356668494,-687.31,0.00020732,2]
[381807926,1756356668504,-480.0,0.00020732,2]
[381807927,1756356668515,-490.1,0.00020732,2]
[381807928,1756356668526,-543.14,0.00020732,2]
[381807929,1756356668536,-1457.75,0.00020732,2]
[381807930,1756356668545,-480.0,0.00020732,2]
[381807931,1756356668555,-480.0,0.00020732,2]
[381807932,1756356668564,-1828.87,0.00020732,2]
[381807933,1756356668573,-480.0,0.00020732,2]
[381807934,1756356668582,-480.0,0.00020732,2]
[381807935,1756356668594,-480.0,0.00020732,2]
[381807936,1756356668606,-438.11780381,0.00020732,2]
[381807937,1756356668616,-480.0,0.00020732,2]
[381807938,1756356668625,-480.0,0.00020732,2]
[381807939,1756356668635,-503.14,0.00020732,2]
[381807940,1756356668645,-480.0,0.00020732,2]
[381807941,1756356668655,-480.0,0.00020732,2]
[381807942,1756356668665,-480.0,0.00020732,2]
[381807943,1756356668675,-749.19,0.00020732,2]
[381807944,1756356668684,-1023.93,0.00020732,2]
[381807945,1756356668693,-4065.99,0.00020732,2]
[381807946,1756356668703,-480.0,0.00020732,2]
[381807947,1756356668712,-571.63,0.00020732,2]
[381807948,1756356668721,-480.0,0.00020732,2]
[381807949,1756356668731,-480.0,0.00020732,2]
[381807950,1756356668740,-1376.72,0.00020732,2]
[381807951,1756356668759,-480.0,0.00020732,2]
[381807952,1756356668774,-480.0,0.00020732,2]
[381807953,1756356668791,-2297.07,0.00020732,2]
[381807954,1756356668808,-799.5,0.00020732,2]
[381807955,1756356668825,-480.0,0.00020732,2]
[381807956,1756356668839,-480.0,0.00020732,2]
[381807957,1756356668855,-633.53,0.00020732,2]
[381807958,1756356668872,-480.0,0.00020732,2]
[381807959,1756356668890,-480.0,0.00020732,2]
[381807960,1756356668906,-480.0,0.00020732,2]
[381807961,1756356668924,-480.0,0.00020732,2]
[381807962,1756356668940,-480.0,0.00020732,2]
[381807963,1756356668956,-1204.91,0.00020732,2]
[381807964,1756356668973,-480.0,0.00020732,2]